bitfinex/quotes_BTCUSD_20240929
["timestamp","ask_amount","ask_price","bid_price","bid_amount"]
[1727598260787,0.47681995,65596.0,65591.0,7.2e-05]
[1727598262160,0.45292442,65596.0,65591.0,7.2e-05]
[1727598263159,0.46886023,65596.0,65591.0,7.2e-05]
[1727598264283,0.45268829,65596.0,65591.0,7.2e-05]
[1727598265014,0.60686294,65596.0,65591.0,7.2e-05]
[1727598265247,0.48158456,65596.0,65591.0,7.2e-05]
[1727598266608,0.45768829,65596.0,65591.0,7.2e-05]
[1727598266837,0.47396533,65596.0,65591.0,7.2e-05]
[1727598267733,0.47344762,65596.0,65591.0,7.2e-05]
[1727598269446,0.49734531,65596.0,65591.0,7.2e-05]
[1727598272588,0.48106827,65596.0,65591.0,7.2e-05]
[1727598274158,0.45717058,65596.0,65591.0,7.2e-05]
[1727598274428,0.45917058,65596.0,65591.0,7.2e-05]
[1727598275805,0.64857058,65596.0,65591.0,7.2e-05]
[1727598276517,0.017,65595.0,65594.0,0.00079139]
[1727598276747,0.56593666,65595.0,65594.0,0.00079139]
[1727598277216,0.56597961,65595.0,65594.0,0.00079139]
[1727598277459,0.58988021,65595.0,65594.0,0.00079139]
[1727598278140,0.83604167,65595.0,65594.0,0.00079139]
[1727598279265,0.84004167,65595.0,65594.0,0.00079139]
[1727598280613,0.84204167,65595.0,65594.0,0.00079139]
[1727598281053,0.85832918,65595.0,65594.0,0.00079139]
[1727598281965,0.85834996,65595.0,65594.0,0.00079139]
[1727598283152,0.83444936,65595.0,65594.0,0.00079139]
[1727598283364,0.58827578,65595.0,65594.0,0.00079139]
[1727598285853,0.56998827,65595.0,65594.0,0.00079139]
[1727598286544,0.157457,65592.0,65591.0,7.2e-05]
[1727598286776,0.44285605,65592.0,65591.0,7.2e-05]
[1727598287466,0.46875543,65592.0,65591.0,7.2e-05]
[1727598288160,0.45875543,65592.0,65591.0,7.2e-05]
[1727598288668,0.46875543,65592.0,65591.0,7.2e-05]
[1727598290019,0.48509067,65592.0,65591.0,7.2e-05]
[1727598292047,0.46119129,65592.0,65591.0,7.2e-05]
[1727598292264,0.46119129,65592.0,65591.0,0.000899]
[1727598293595,0.4850912,65592.0,65591.0,0.000899]
[1727598294955,0.46875596,65592.0,65591.0,0.000899]
[1727598296554,0.46875596,65592.0,65584.0,0.000827]
[1727598296555,0.152473,65585.0,65584.0,0.000827]
[1727598296775,0.42787205,65585.0,65584.0,0.000827]
[1727598298216,0.44522414,65585.0,65584.0,0.000827]
[1727598300703,0.44555483,65585.0,65584.0,0.000827]
[1727598300959,0.46945522,65585.0,65584.0,0.000827]
[1727598304080,0.46941923,65585.0,65584.0,0.000827]
[1727598304294,0.44551884,65585.0,65584.0,0.000827]
[1727598304516,0.42916675,65585.0,65584.0,0.000827]
[1727598307560,0.45306693,65585.0,65584.0,0.000827]
[1727598308671,0.42916675,65585.0,65584.0,0.000827]
[1727598308897,0.42938235,65585.0,65584.0,0.000827]
[1727598310311,0.58347203,65585.0,65584.0,0.000827]
[1727598311222,0.42938235,65585.0,65584.0,0.000827]
[1727598311891,0.45328272,65585.0,65584.0,0.000827]
[1727598313467,0.45310837,65585.0,65584.0,0.000827]
[1727598315912,0.429208,65585.0,65584.0,0.000827]
[1727598318193,0.42905889,65585.0,65584.0,0.000827]
[1727598319074,0.44528071,65585.0,65584.0,0.000827]
[1727598322746,0.27069482,65585.0,65584.0,0.000827]
[1727598322962,0.44529551,65585.0,65584.0,0.000827]
[1727598323604,0.42907369,65585.0,65584.0,0.000827]
[1727598323819,0.44525189,65585.0,65584.0,0.000827]
[1727598330329,0.15249,65578.0,65577.0,0.015718]
[1727598330554,0.32709069,65578.0,65577.0,0.015718]
[1727598331652,0.3509923,65578.0,65577.0,0.015718]
[1727598332094,0.32809069,65578.0,65577.0,0.015718]
[1727598332314,0.32807127,65578.0,65577.0,0.015718]
[1727598332989,0.34411895,65578.0,65577.0,0.015718]
[1727598336030,0.34511895,65578.0,65577.0,0.093018]
[1727598336238,0.19262895,65578.0,65577.0,0.24551]
[1727598336481,0.19384256,65578.0,65577.0,0.24551]
[1727598336754,0.06374697,65578.0,65577.0,0.24551]
[1727598336965,0.01804768,65578.0,65577.0,0.24551]
[1727598337409,0.01804768,65578.0,65577.0,0.3310598]
[1727598338102,0.06374697,65578.0,65577.0,0.3310598]
[1727598338324,0.01804768,65578.0,65577.0,0.3310598]
[1727598339281,0.002,65578.0,65577.0,0.3310598]
[1727598340446,0.002,65578.0,65577.0,0.24551]
[1727598341977,0.002,65578.0,65577.0,0.246337]
[1727598342188,0.003654,65578.0,65577.0,0.246337]
[1727598343987,0.0194906,65578.0,65577.0,0.246337]
[1727598358579,0.003654,65578.0,65577.0,0.246337]
[1727598359274,0.003654,65578.0,65577.0,0.3319695]
[1727598359281,0.01951103,65578.0,65577.0,0.3319695]
[1727598365759,0.01951103,65578.0,65577.0,0.153319]
[1727598367403,0.003654,65578.0,65577.0,0.153319]
[1727598372558,0.01952497,65578.0,65577.0,0.153319]
[1727598377680,0.003654,65578.0,65577.0,0.153319]
[1727598380356,0.01938375,65578.0,65577.0,0.153319]
[1727598380592,0.04929895,65578.0,65577.0,0.153319]
[1727598381808,0.08789951,65578.0,65577.0,0.153319]
[1727598382046,0.08799621,65578.0,65577.0,0.153319]
[1727598384523,0.07221813,65578.0,65577.0,0.153319]
[1727598386721,0.08795076,65578.0,65577.0,0.153319]
[1727598387695,0.08795076,65578.0,65577.0,0.235519]
[1727598387935,0.0650967,65578.0,65577.0,0.333719]
[1727598388827,0.0650967,65578.0,65577.0,0.45078056]
[1727598389529,0.04936407,65578.0,65577.0,0.45078056]
[1727598396051,0.04936411,65578.0,65577.0,0.45078056]
[1727598396920,0.07221916,65578.0,65577.0,0.45078056]
[1727598398697,0.07221916,65578.0,65577.0,0.35258056]
[1727598399640,0.003654,65578.0,65577.0,0.35258056]
[1727598400959,0.07222278,65578.0,65577.0,0.35258056]
[1727598403022,0.07222278,65578.0,65577.0,0.27038056]
[1727598404188,0.08800856,65578.0,65577.0,0.27038056]
[1727598405291,0.08800856,65578.0,65577.0,0.153319]
[1727598407092,0.07222278,65578.0,65577.0,0.153319]
[1727598407303,0.08800315,65578.0,65577.0,0.153319]
[1727598407733,0.07222278,65578.0,65577.0,0.153319]
[1727598408166,0.08800097,65578.0,65577.0,0.153319]
[1727598408850,0.08800097,65578.0,65577.0,0.2296052]
[1727598409578,0.08801372,65578.0,65577.0,0.2296052]
[1727598409796,0.08801372,65578.0,65577.0,0.153319]
[1727598410464,0.01943219,65578.0,65577.0,0.153319]
[1727598414248,0.1951812,65578.0,65577.0,0.153319]
[1727598415750,0.17940301,65578.0,65577.0,0.153319]
[1727598415964,0.19518541,65578.0,65577.0,0.153319]
[1727598417896,0.0194364,65578.0,65577.0,0.153319]
[1727598418325,0.19516678,65578.0,65577.0,0.153319]
[1727598420820,0.19516678,65578.0,65577.0,0.23029779]
[1727598421041,0.08802776,65578.0,65577.0,0.23029779]
[1727598421937,0.08802776,65578.0,65577.0,0.153319]
[1727598423317,0.08802422,65578.0,65577.0,0.153319]
[1727598426768,0.07224182,65578.0,65577.0,0.153319]
[1727598427624,0.07224366,65578.0,65577.0,0.232519]
[1727598428057,0.07224339,65578.0,65577.0,0.232519]
[1727598428270,0.07224339,65578.0,65577.0,0.32674484]
[1727598430236,0.08797117,65578.0,65577.0,0.32674484]
[1727598430724,0.08695421,65578.0,65577.0,0.32674484]
[1727598431383,0.01836482,65578.0,65577.0,0.24754484]
[1727598431599,0.08695036,65578.0,65577.0,0.24754484]
[1727598432498,0.08695035,65578.0,65577.0,0.24754484]
[1727598432803,0.01836482,65578.0,65577.0,0.24754484]
[1727598433957,0.19415261,65578.0,65577.0,0.24754484]
[1727598434420,0.08695023,65578.0,65577.0,0.24754484]
[1727598435531,0.01836482,65578.0,65577.0,0.24754484]
[1727598435774,0.19435328,65578.0,65577.0,0.24754484]
[1727598436441,0.01836482,65578.0,65577.0,0.24754484]
[1727598436964,0.08695067,65578.0,65577.0,0.24754484]
[1727598442059,0.08695067,65578.0,65577.0,0.153319]
[1727598442290,0.01836482,65578.0,65577.0,0.153319]
[1727598443237,0.19442477,65578.0,65577.0,0.000827]
[1727598443460,0.38297207,65578.0,65577.0,0.000827]
[1727598444573,0.38297207,65578.0,65577.0,0.153319]
[1727598444794,0.38297207,65578.0,65577.0,0.000827]
[1727598445703,0.38297207,65578.0,65577.0,0.153319]
[1727598445931,0.38297207,65578.0,65577.0,0.000827]
[1727598447002,0.3829109,65578.0,65577.0,0.000827]
[1727598447444,0.36718312,65578.0,65577.0,0.000827]
[1727598448644,0.36718312,65578.0,65574.0,0.304998]
[1727598448857,0.0457257,65575.0,65574.0,0.304998]
[1727598449079,0.0457257,65575.0,65574.0,0.457497]
[1727598449551,0.0457257,65575.0,65574.0,0.53427742]
[1727598451331,0.0467257,65575.0,65574.0,0.53427742]
[1727598451756,0.0467257,65575.0,65574.0,0.458497]
[1727598452434,0.0467257,65575.0,65574.0,0.457497]
[1727598452837,0.0477257,65575.0,65574.0,0.458497]
[1727598455830,0.06356432,65575.0,65574.0,0.458497]
[1727598457812,0.01783862,65575.0,65574.0,0.458497]
[1727598459928,0.002,65575.0,65574.0,0.458497]
[1727598460152,0.002,65575.0,65574.0,0.459324]
[1727598460657,0.0477257,65575.0,65574.0,0.459324]
[1727598463115,0.0477257,65575.0,65574.0,0.154326]
[1727598463636,0.06372051,65575.0,65574.0,0.154326]
[1727598465040,0.01799481,65575.0,65574.0,0.154326]
[1727598465513,0.002,65575.0,65574.0,0.154326]
[1727598468698,0.01800371,65575.0,65574.0,0.154326]
[1727598472173,0.06374142,65575.0,65574.0,0.154326]
[1727598472857,0.01800371,65575.0,65574.0,0.154326]
[1727598473286,0.01800371,65575.0,65574.0,0.001827]
[1727598473742,0.01800371,65575.0,65574.0,0.154326]
[1727598474198,0.01800371,65575.0,65574.0,0.001827]
[1727598474652,0.01794578,65575.0,65574.0,0.001827]
[1727598475596,0.08655147,65575.0,65574.0,0.001827]
[1727598479817,0.07060569,65575.0,65574.0,0.001827]
[1727598480284,0.07060569,65575.0,65574.0,0.154326]
[1727598480506,0.07060569,65575.0,65574.0,0.001827]
[1727598481175,0.07060569,65575.0,65574.0,0.154326]
[1727598481437,0.07060569,65575.0,65574.0,0.001827]
[1727598483459,0.07059695,65575.0,65574.0,0.001827]
[1727598483955,0.08656202,65575.0,65574.0,0.001827]
[1727598484180,0.07059695,65575.0,65574.0,0.001827]
[1727598484643,0.002,65575.0,65574.0,0.001827]
[1727598485078,0.04773272,65575.0,65574.0,0.001827]
[1727598485291,0.002,65575.0,65574.0,0.001827]
[1727598485520,0.08655447,65575.0,65574.0,0.001827]
[1727598486462,0.01795752,65575.0,65574.0,0.154326]
[1727598486678,0.08655447,65575.0,65574.0,0.001827]
[1727598487153,0.08648987,65575.0,65574.0,0.001827]
[1727598487598,0.08648987,65575.0,65574.0,0.154326]
[1727598488276,0.08648987,65575.0,65574.0,0.001827]
[1727598488489,0.07059695,65575.0,65574.0,0.001827]
[1727598489164,0.07059695,65575.0,65574.0,0.154326]
[1727598490319,0.04773347,65575.0,65574.0,0.154326]
[1727598490544,0.002,65575.0,65574.0,0.154326]
[1727598490772,0.04773382,65575.0,65574.0,0.154326]
[1727598490994,0.002,65575.0,65574.0,0.154326]
[1727598491937,0.07059695,65575.0,65574.0,0.154326]
[1727598492165,0.07059695,65575.0,65574.0,0.001827]
[1727598492388,0.07059695,65575.0,65574.0,0.154326]
[1727598492854,0.08649291,65575.0,65574.0,0.154326]
[1727598493084,0.07060144,65575.0,65574.0,0.154326]
[1727598493526,0.08650166,65575.0,65574.0,0.154326]
[1727598495121,0.01790022,65575.0,65574.0,0.154326]
[1727598495601,0.06363501,65575.0,65574.0,0.154326]
[1727598495843,0.06363501,65575.0,65574.0,0.56154824]
[1727598496079,0.01790022,65575.0,65574.0,0.56154824]
[1727598500300,0.01790022,65575.0,65574.0,0.46534824]
[1727598509684,0.002,65575.0,65574.0,0.46534824]
[1727598514047,0.01788321,65575.0,65574.0,0.46534824]
[1727598514961,0.002,65575.0,65574.0,0.46534824]
[1727598516488,0.002,65575.0,65574.0,0.30961394]
[1727598527838,0.002,65575.0,65574.0,0.30861394]
[1727598528723,0.002,65575.0,65574.0,0.30851394]
[1727598528952,0.002,65575.0,65574.0,0.30781394]
[1727598529420,0.01808316,65575.0,65574.0,0.30761394]
[1727598529650,0.01808316,65575.0,65574.0,0.30751394]
[1727598529883,0.01808316,65575.0,65574.0,0.40649703]
[1727598530333,0.01808316,65575.0,65574.0,0.40629703]
[1727598530560,0.01808316,65575.0,65574.0,0.40619703]
[1727598530789,0.01808316,65575.0,65574.0,0.40549703]
[1727598531025,0.01808316,65575.0,65574.0,0.30581394]
[1727598531026,0.06378336,65575.0,65574.0,0.30581394]
[1727598531264,0.002,65575.0,65574.0,0.30581394]
[1727598531506,0.002,65575.0,65574.0,0.30551394]
[1727598531715,0.002,65575.0,65574.0,0.30481394]
[1727598532385,0.002,65575.0,65574.0,0.30461394]
[1727598532610,0.002,65575.0,65574.0,0.149326]
[1727598533536,0.002,65575.0,65574.0,0.150153]
[1727598533750,0.01978681,65575.0,65574.0,0.150153]
[1727598533974,0.01978681,65575.0,65574.0,0.2341]
[1727598534833,0.01978681,65575.0,65574.0,0.150153]
[1727598536166,0.003654,65575.0,65574.0,0.150153]
[1727598539703,0.04935744,65575.0,65574.0,0.150153]
[1727598540126,0.003654,65575.0,65574.0,0.150153]
[1727598540333,0.04936033,65575.0,65574.0,0.150153]
[1727598540794,0.06548616,65575.0,65574.0,0.150153]
[1727598541207,0.04936033,65575.0,65574.0,0.150153]
[1727598541428,0.06551954,65575.0,65574.0,0.150153]
[1727598542628,0.06551954,65575.0,65574.0,0.000827]
[1727598542819,0.08837271,65575.0,65574.0,0.000827]
[1727598545312,0.0722135,65575.0,65574.0,0.000827]
[1727598546970,0.0884905,65575.0,65574.0,0.000827]
[1727598547651,0.0884905,65575.0,65574.0,0.153326]
[1727598547873,0.019931,65575.0,65574.0,0.153326]
[1727598548320,0.06562914,65575.0,65574.0,0.153326]
[1727598548753,0.019931,65575.0,65574.0,0.153326]
[1727598549183,0.06562804,65575.0,65574.0,0.153326]
[1727598552791,0.04935104,65575.0,65574.0,0.153326]
[1727598553000,0.06552337,65575.0,65574.0,0.153326]
[1727598553244,0.04935239,65575.0,65574.0,0.153326]
[1727598554119,0.06552339,65575.0,65574.0,0.153326]
[1727598555704,0.06552339,65575.0,65574.0,0.000827]
[1727598555705,0.019825,65575.0,65574.0,0.000827]
[1727598555947,0.019825,65575.0,65574.0,0.153326]
[1727598556594,0.06552521,65575.0,65574.0,0.153326]
[1727598556806,0.019825,65575.0,65574.0,0.153326]
[1727598561291,0.0655326,65575.0,65574.0,0.153326]
[1727598561511,0.019825,65575.0,65574.0,0.153326]
[1727598563776,0.003654,65575.0,65574.0,0.153326]
[1727598564430,0.01982638,65575.0,65574.0,0.153326]
[1727598565315,0.003654,65575.0,65574.0,0.153326]
[1727598567531,0.01983373,65575.0,65574.0,0.153326]
[1727598568901,0.003654,65575.0,65574.0,0.153326]
[1727598572028,0.01983985,65575.0,65574.0,0.000827]
[1727598572241,0.44371971,65575.0,65574.0,0.000827]
[1727598574598,0.55794395,65575.0,65574.0,0.000827]
[1727598574804,0.55794463,65575.0,65574.0,0.000827]
[1727598575022,0.55794403,65575.0,65574.0,0.000827]
[1727598575270,0.44371971,65575.0,65574.0,0.000827]
[1727598576671,0.5579322,65575.0,65574.0,0.000827]
[1727598576885,0.44371971,65575.0,65574.0,0.000827]
[1727598577544,0.5579322,65575.0,65574.0,0.000827]
[1727598577761,0.44371971,65575.0,65574.0,0.000827]
[1727598578422,0.55791399,65575.0,65574.0,0.000827]
[1727598579470,0.44371971,65575.0,65574.0,0.000827]
[1727598586128,0.44295947,65575.0,65574.0,0.000827]
[1727598590027,0.44297218,65575.0,65574.0,0.000827]
[1727598590472,0.53430411,65575.0,65574.0,0.000827]
[1727598590953,0.53430074,65575.0,65574.0,0.000827]
[1727598594447,0.44296866,65575.0,65574.0,0.000827]
[1727598594931,0.53429496,65575.0,65574.0,0.000827]
[1727598597791,0.53429495,65575.0,65574.0,0.000827]
[1727598600294,0.53419553,65575.0,65574.0,0.000827]
[1727598601644,0.33613509,65575.0,65574.0,0.000827]
[1727598602358,0.26763685,65575.0,65574.0,0.000827]
[1727598602793,0.33613616,65575.0,65574.0,0.000827]
[1727598603695,0.26763685,65575.0,65574.0,0.000827]
[1727598604588,0.11513985,65575.0,65574.0,0.000827]
[1727598604822,0.26763685,65575.0,65574.0,0.000827]
[1727598606826,0.31330778,65575.0,65574.0,0.000827]
[1727598607271,0.26763685,65575.0,65574.0,0.000827]
[1727598608408,0.33614542,65575.0,65574.0,0.000827]
[1727598611376,0.26763685,65575.0,65574.0,0.000827]
[1727598612028,0.251451,65575.0,65574.0,0.000827]
[1727598613047,0.250451,65575.0,65574.0,0.000827]
[1727598613269,0.41131401,65575.0,65574.0,0.000827]
[1727598613468,0.41231401,65575.0,65574.0,0.000827]
[1727598614390,0.50368302,65575.0,65574.0,0.000827]
[1727598614625,0.50268302,65575.0,65574.0,0.000827]
[1727598615718,0.50368302,65575.0,65574.0,0.000827]
[1727598615927,0.50268302,65575.0,65574.0,0.000827]
[1727598616587,0.51876501,65575.0,65574.0,0.000827]
[1727598617483,0.54160726,65575.0,65574.0,0.000827]
[1727598617739,0.52552527,65575.0,65574.0,0.000827]
[1727598618425,0.52452527,65575.0,65574.0,0.000827]
[1727598619758,0.41031401,65575.0,65574.0,0.000827]
[1727598620445,0.08627186,65575.0,65574.0,0.153326]
[1727598621394,0.01768901,65575.0,65574.0,0.153326]
[1727598622075,0.01868901,65575.0,65574.0,0.153326]
[1727598623756,0.01968901,65575.0,65574.0,0.154326]
[1727598624210,0.06441241,65575.0,65574.0,0.153326]
[1727598624899,0.06341241,65575.0,65574.0,0.153326]
[1727598625118,0.06441241,65575.0,65574.0,0.156326]
[1727598625827,0.06541241,65575.0,65574.0,0.156326]
[1727598626670,0.06539935,65575.0,65574.0,0.156326]
[1727598629719,0.01939442,65575.0,65574.0,0.156326]
[1727598630860,0.06510476,65575.0,65574.0,0.156326]
[1727598631504,0.04936434,65575.0,65574.0,0.156326]
[1727598634829,0.01938612,65575.0,65574.0,0.156326]
[1727598635039,0.01738612,65575.0,65574.0,0.000827]
[1727598635247,0.01738612,65575.0,65574.0,0.153326]
[1727598636331,0.01838612,65575.0,65574.0,0.154326]
[1727598637204,0.01938612,65575.0,65574.0,0.154326]
[1727598637861,0.01838612,65575.0,65574.0,0.154326]
[1727598639213,0.01738612,65575.0,65574.0,0.153326]
[1727598639645,0.01738612,65575.0,65574.0,0.000827]
[1727598639864,0.06309646,65575.0,65574.0,0.000827]
[1727598640090,0.06409646,65575.0,65574.0,0.154326]
[1727598640310,0.04836434,65575.0,65574.0,0.154326]
[1727598640740,0.04735573,65575.0,65574.0,0.153326]
[1727598640953,0.0631004,65575.0,65574.0,0.000827]
[1727598642765,0.0641004,65575.0,65574.0,0.001827]
[1727598646573,0.01839867,65575.0,65574.0,0.001827]
[1727598646895,0.06410286,65575.0,65574.0,0.001827]
[1727598647505,0.06410286,65575.0,65574.0,0.154326]
[1727598647730,0.06410286,65575.0,65574.0,0.001827]
[1727598649130,0.06410286,65575.0,65574.0,0.154326]
[1727598649638,0.04835819,65575.0,65574.0,0.154326]
[1727598650133,0.06414098,65575.0,65574.0,0.154326]
[1727598653387,0.04835819,65575.0,65574.0,0.154326]
[1727598654033,0.06408068,65575.0,65574.0,0.154326]
[1727598654239,0.01837649,65575.0,65574.0,0.333726]
[1727598656245,0.002654,65575.0,65574.0,0.333726]
[1727598658685,0.002654,65575.0,65574.0,0.42917143]
[1727598659829,0.001654,65575.0,65574.0,0.42817143]
[1727598660237,0.003654,65575.0,65574.0,0.42917143]
[1727598660688,0.002654,65575.0,65574.0,0.42917143]
[1727598660924,0.002654,65575.0,65574.0,0.42817143]
[1727598661148,0.001654,65575.0,65574.0,0.32967143]
[1727598661624,0.002654,65575.0,65574.0,0.32967143]
[1727598662996,0.003654,65575.0,65574.0,0.33967143]
[1727598666554,0.003654,65575.0,65574.0,0.49495937]
[1727598674898,0.23457646,65585.0,65574.0,0.34246037]
[1727598675132,0.23457646,65585.0,65582.0,0.152478]
[1727598675376,0.04570788,65585.0,65582.0,0.152478]
[1727598675590,0.04570788,65585.0,65578.0,0.304978]
[1727598676048,0.19818188,65585.0,65581.0,0.152481]
[1727598676269,0.19818188,65585.0,65582.0,0.152479]
[1727598676270,0.04570788,65585.0,65582.0,0.152479]
[1727598676497,0.04570788,65585.0,65583.0,0.0762426]
[1727598676941,0.19818188,65585.0,65583.0,0.0762426]
[1727598678436,0.04570788,65585.0,65582.0,0.152479]
[1727598678649,0.04670788,65585.0,65582.0,0.152479]
[1727598678868,0.19918188,65585.0,65582.0,0.152479]
[1727598679082,0.19818188,65585.0,65580.0,0.152484]
[1727598679372,0.19818188,65585.0,65583.0,0.001]
[1727598679602,0.19918188,65585.0,65583.0,0.001]
[1727598679836,0.152476,65584.0,65583.0,0.001]
[1727598680051,0.04670788,65585.0,65581.0,0.152481]
[1727598680273,0.152477,65584.0,65581.0,0.0762429]
[1727598680488,0.152477,65584.0,65582.0,0.001]
[1727598682023,0.04570788,65586.0,65583.0,0.152476]
[1727598682253,0.04570788,65586.0,65582.0,0.001]
[1727598682491,0.001,65585.0,65582.0,0.001]
[1727598682706,0.001,65585.0,65582.0,0.153479]
[1727598682928,0.19817988,65586.0,65582.0,0.152479]
[1727598683378,0.19817988,65586.0,65582.0,0.153479]
[1727598683853,0.19817988,65586.0,65583.0,0.02367499]
[1727598684066,0.19817888,65586.0,65583.0,0.17615199]
[1727598684285,0.19817888,65586.0,65583.0,0.02367499]
[1727598684958,0.04570788,65586.0,65584.0,0.152476]
[1727598685176,0.04570788,65586.0,65585.0,0.01936831]
[1727598685409,0.19817888,65586.0,65585.0,0.01936831]
[1727598685840,0.19817888,65586.0,65583.0,0.02367499]
[1727598686056,0.001,65585.0,65580.0,0.382367]
[1727598686275,0.001,65585.0,65584.0,0.152474]
[1727598686509,0.04570788,65586.0,65584.0,0.152474]
[1727598686753,0.04570788,65586.0,65581.0,0.304964]
[1727598686983,0.04570788,65586.0,65583.0,0.152478]
[1727598686984,0.002,65586.0,65583.0,0.152478]
[1727598687528,0.002,65586.0,65585.0,0.152473]
[1727598687743,0.002,65586.0,65585.0,0.2059562]
[1727598688372,0.002,65586.0,65585.0,0.0534832]
[1727598688591,0.003654,65586.0,65585.0,0.0534832]
[1727598688794,0.001654,65586.0,65585.0,0.2059562]
[1727598688998,0.001654,65586.0,65585.0,0.0534832]
[1727598689403,0.001654,65586.0,65585.0,0.2059562]
[1727598689611,0.001654,65586.0,65585.0,0.152473]
[1727598690044,0.003654,65586.0,65585.0,0.229873]
[1727598693318,0.001654,65586.0,65585.0,0.229873]
[1727598693763,0.001654,65586.0,65585.0,0.233873]
[1727598694201,0.001654,65586.0,65585.0,0.229873]
[1727598694424,0.001654,65586.0,65585.0,0.35552099]
[1727598694643,0.002654,65586.0,65585.0,0.35952099]
[1727598694948,0.001654,65586.0,65585.0,0.35524699]
[1727598695042,0.001654,65586.0,65585.0,0.35497282]
[1727598695275,0.002654,65586.0,65585.0,0.35897282]
[1727598696627,0.003654,65586.0,65585.0,0.52126076]
[1727598696856,0.003654,65586.0,65585.0,0.62066076]
[1727598697078,0.002654,65586.0,65585.0,0.61366076]
[1727598697757,0.002654,65586.0,65585.0,0.63666076]
[1727598697971,0.004654,65586.0,65585.0,0.64766076]
[1727598698401,0.002654,65586.0,65585.0,0.63966076]
[1727598698613,0.001654,65586.0,65585.0,0.63266076]
[1727598699351,0.002654,65586.0,65585.0,0.63666076]
[1727598699573,0.002654,65586.0,65585.0,0.64166076]
[1727598700485,0.003654,65586.0,65585.0,0.64866076]
[1727598701593,0.003654,65586.0,65585.0,0.64948776]
[1727598716236,0.003654,65586.0,65585.0,0.75948776]
[1727598716470,0.003654,65586.0,65585.0,0.8051695]
[1727598716960,0.00259488,65586.0,65585.0,0.8051695]
[1727598718101,0.00159488,65586.0,65585.0,0.7981695]
[1727598718328,0.00159488,65586.0,65585.0,0.99727922]
[1727598718552,0.00159488,65586.0,65585.0,0.94237316]
[1727598718799,0.00059488,65586.0,65585.0,0.99527666]
[1727598719251,0.00159488,65586.0,65585.0,1.00927666]
[1727598719705,0.00059488,65586.0,65585.0,1.00927666]
[1727598720153,0.00059488,65586.0,65585.0,1.02327666]
[1727598721460,0.00059488,65586.0,65585.0,1.09175154]
[1727598722151,0.00059488,65586.0,65585.0,1.07775154]
[1727598722363,0.00059488,65586.0,65585.0,1.00927666]
[1727598722609,0.00159488,65586.0,65585.0,1.09162863]
[1727598723047,0.00159488,65586.0,65585.0,1.02316022]
[1727598723310,0.00159488,65586.0,65585.0,1.11446205]
[1727598723534,0.00159488,65586.0,65585.0,1.02116022]
[1727598723759,0.00159488,65586.0,65585.0,1.02316022]
[1727598723991,0.00159488,65586.0,65585.0,1.02116022]
[1727598724204,0.00159488,65586.0,65585.0,1.02316022]
[1727598724891,0.00159488,65586.0,65585.0,1.10046205]
[1727598725396,0.00259488,65586.0,65585.0,1.11446205]
[1727598725636,0.00159488,65586.0,65585.0,1.09846205]
[1727598725883,0.00159488,65586.0,65585.0,1.10046205]
[1727598726111,0.00259488,65586.0,65585.0,1.11446205]
[1727598726746,0.00159488,65586.0,65585.0,1.10046205]
[1727598726959,0.00159488,65586.0,65585.0,1.21660045]
[1727598727186,0.00159488,65586.0,65585.0,1.23619146]
[1727598727187,0.00259488,65586.0,65585.0,1.23619146]
[1727598727828,0.00159488,65586.0,65585.0,1.22219146]
[1727598731294,0.00159488,65586.0,65585.0,1.13092225]
[1727598731509,0.00159488,65586.0,65585.0,1.22220423]
[1727598732202,0.00259488,65586.0,65585.0,1.14492225]
[1727598734198,0.00259488,65586.0,65585.0,1.25900876]
[1727598734639,0.00259488,65586.0,65585.0,1.25700876]
[1727598735284,0.00259488,65586.0,65585.0,1.25900876]
[1727598736637,0.00259488,65586.0,65585.0,1.14492225]
[1727598740019,0.00159488,65586.0,65585.0,1.13092225]
[1727598740452,0.00159488,65586.0,65585.0,1.14492225]
[1727598741167,0.00159488,65586.0,65585.0,1.14476732]
[1727598741379,0.00059488,65586.0,65585.0,1.13076732]
[1727598743743,0.00059488,65586.0,65585.0,1.14476732]
[1727598747580,0.00059488,65586.0,65585.0,1.13687632]
[1727598747831,0.00059488,65586.0,65585.0,1.12287632]
[1727598748035,0.00059488,65586.0,65585.0,1.15087632]
[1727598749677,0.00059488,65586.0,65585.0,1.14887632]
[1727598749882,0.00059488,65586.0,65585.0,1.15087632]
[1727598750527,0.00059488,65586.0,65585.0,1.1500943]
[1727598755353,0.00059488,65586.0,65585.0,1.15017219]
[1727598755561,0.00059488,65586.0,65585.0,1.28733363]
[1727598758346,0.00059488,65586.0,65585.0,1.15017219]
[1727598758803,0.00028046,65586.0,65585.0,1.15017219]
[1727598760627,0.001654,65591.0,65590.0,0.2986004]
[1727598760842,0.001654,65591.0,65590.0,0.95971343]
[1727598761094,0.001654,65591.0,65590.0,1.37252001]
[1727598761307,0.22690658,65606.0,65600.0,0.280439]
[1727598761601,0.22690658,65606.0,65600.0,0.68516397]
[1727598762013,0.0972,65607.0,65600.0,0.68516397]
[1727598762234,0.0972,65607.0,65600.0,0.68716397]
[1727598762460,0.0972,65607.0,65600.0,0.81557377]
[1727598763327,0.0972,65607.0,65600.0,0.82648948]
[1727598765162,0.0972,65607.0,65600.0,0.84048948]
[1727598765390,0.0972,65607.0,65600.0,0.85448948]
[1727598766308,0.001654,65608.0,65600.0,0.85448948]
[1727598766534,0.098554,65601.0,65600.0,0.85448948]
[1727598768533,0.098554,65601.0,65600.0,0.79958598]
[1727598770566,0.098554,65601.0,65600.0,0.91388473]
[1727598773879,0.001654,65601.0,65600.0,0.91388473]
[1727598777256,0.001654,65601.0,65600.0,0.79958598]
[1727598778591,0.001654,65601.0,65600.0,0.80158598]
[1727598782665,0.001654,65601.0,65600.0,0.80058598]
[1727598782882,0.001654,65601.0,65600.0,0.79958598]
[1727598784064,0.00133958,65601.0,65600.0,0.80158598]
[1727598784504,0.00133958,65601.0,65600.0,0.79958598]
[1727598786128,0.00133958,65601.0,65600.0,0.80158598]
[1727598786366,0.00133958,65601.0,65600.0,0.78558598]
[1727598787152,0.00133958,65601.0,65600.0,0.79958598]
[1727598787645,0.00133958,65601.0,65600.0,0.85453513]
[1727598788347,0.00133958,65601.0,65600.0,0.84053513]
[1727598789055,0.00133958,65601.0,65600.0,0.84153513]
[1727598789274,0.00133958,65601.0,65600.0,0.84053513]
[1727598791093,0.00133958,65601.0,65600.0,0.85453513]
[1727598791584,0.00133958,65601.0,65600.0,0.8624782]
[1727598792038,0.00133958,65601.0,65600.0,0.97675192]